fUST/lending_fUST_20250708
["ID","MTS","AMOUNT","RATE_DAILY","PERIOD"]
[370314858,1751949052250,-460.0,0.00019726,2]
[370314859,1751949052260,-460.0,0.00019726,2]
[370314860,1751949052272,-460.0,0.00019726,2]
[370314861,1751949052281,-460.0,0.00019726,2]
[370314862,1751949052291,-460.0,0.00019726,2]
[370314863,1751949052300,-460.0,0.00019726,2]
[370314864,1751949052311,-460.0,0.00019726,2]
[370314865,1751949052324,-460.0,0.00019726,2]
[370314866,1751949052334,-460.0,0.00019726,2]
[370314867,1751949052344,-460.0,0.00019726,2]
[370314868,1751949052353,-460.0,0.00019726,2]
[370314869,1751949052363,-467.8414401,0.00019726,2]
[370314870,1751949052374,-467.5417066,0.00019726,2]
[370314871,1751949052383,-460.0,0.00019726,2]
[370314872,1751949052650,-460.0,0.00019726,2]
[370314873,1751949052672,-460.0,0.00019726,2]
[370314874,1751949052683,-461.9012402,0.00019726,2]
[370314875,1751949052693,-460.0,0.00019726,2]
[370314876,1751949052702,-584.02,0.00019726,2]
[370314877,1751949052712,-2667.14,0.00019726,2]
[370314878,1751949052722,-460.0,0.00019726,2]
[370314879,1751949052731,-460.0,0.00019726,2]
[370314880,1751949052740,-1161.57,0.00019726,2]
[370314881,1751949052750,-460.0,0.00019726,2]
[370314882,1751949052759,-460.0,0.00019726,2]
[370314883,1751949052768,-460.0,0.00019726,2]
[370314884,1751949052778,-2801.69,0.00019726,2]
[370314885,1751949052787,-460.0,0.00019726,2]
[370314886,1751949052797,-460.0,0.00019726,2]
[370314887,1751949052806,-469.37,0.00019726,2]
[370314888,1751949052815,-463.19352598,0.00019726,2]
[370314889,1751949052824,-429.38788147,0.00019726,2]
[370314890,1751949052834,-464.82975221,0.00019726,2]
[370314891,1751949052843,-460.0,0.00019726,2]
[370314892,1751949052856,-460.0,0.00019726,2]
[370314893,1751949052865,-460.0,0.00019726,2]
[370314894,1751949052876,-460.0,0.00019726,2]
[370314895,1751949052885,-881.46,0.00019726,2]
[370314896,1751949052894,-379.25505299,0.00019726,2]
[370314897,1751949052903,-460.0,0.00019726,2]
[370314898,1751949052913,-460.0,0.00019726,2]
[370314899,1751949052923,-460.0,0.00019726,2]
[370314900,1751949052934,-460.0,0.00019726,2]
[370314901,1751949052943,-460.0,0.00019726,2]
[370314902,1751949052953,-460.0,0.00019726,2]
[370314903,1751949052962,-455.0,0.00019726,2]
[370314904,1751949052971,-460.0,0.00019726,2]
[370314905,1751949052981,-460.0,0.00019726,2]
[370314906,1751949052991,-460.0,0.00019726,2]
[370314907,1751949053000,-462.28435437,0.00019726,2]
[370314908,1751949053009,-460.0,0.00019726,2]
[370314909,1751949053019,-306.48548895,0.00019726,2]
[370314910,1751949053028,-460.0,0.00019726,2]
[370314911,1751949053038,-460.0,0.00019726,2]
[370314912,1751949053047,-314.0,0.00019747,2]
[370314913,1751949053057,-642.0,0.000198,2]
[370314914,1751949053066,-150.0,0.00019825,2]
[370314915,1751949053076,-500.0,0.00019895,2]
[370314916,1751949053085,-2142.15477475,0.000199,2]
[370314917,1751949053094,-1000.0,0.0001998,2]
[370314918,1751949053104,-197.99,0.0002,30]
[370314919,1751949053113,-2506.0,0.0002,2]
[370314920,1751949053123,-555.4990394,0.0002,2]
[370314921,1751949053133,-460.0,0.0002,2]
[370314922,1751949053142,-460.0,0.0002,2]
[370314923,1751949053151,-216.128881,0.0002,2]
[370314924,1751949053160,-449.50666772,0.0002,2]
[370314925,1751949053169,-160.37936579,0.0002,2]
[370314926,1751949053178,-460.0,0.0002,2]
[370314927,1751949053187,-476.05479563,0.0002,2]
[370314928,1751949053197,-460.0,0.0002,2]
[370314929,1751949053206,-460.0,0.0002,2]
[370314930,1751949053215,-460.0,0.0002,2]
[370314931,1751949053224,-460.0,0.0002,2]
[370314932,1751949053234,-460.0,0.0002,2]
[370314933,1751949053243,-460.0,0.0002,2]
[370314934,1751949053253,-460.0,0.0002,2]
[370314935,1751949053262,-466.33934922,0.0002,2]
[370314936,1751949053271,-460.0,0.0002,2]
[370314937,1751949053281,-470.55469195,0.0002,2]
[370314938,1751949053291,-460.0,0.0002,2]
[370314939,1751949053300,-460.0,0.0002,2]
[370314940,1751949053309,-529.02,0.0002,2]
[370314941,1751949053319,-152.0,0.0002,2]
[370314942,1751949053328,-527.9,0.0002,2]
[370314943,1751949053337,-460.0,0.0002,2]
[370314944,1751949053347,-460.0,0.0002,2]
[370314945,1751949053356,-460.0,0.0002,2]
[370314946,1751949053366,-460.0,0.0002,2]
[370314947,1751949053375,-502.6683534,0.0002,2]
[370314948,1751949053385,-460.0,0.0002,2]
[370314949,1751949053394,-460.0,0.0002,2]
[370314950,1751949053404,-460.0,0.0002,2]
[370314951,1751949053413,-460.0,0.0002,2]
[370314952,1751949053423,-460.0,0.0002,2]
[370314953,1751949053432,-460.0,0.0002,2]
[370314954,1751949053442,-478.60196663,0.0002,2]
[370314955,1751949053451,-462.14498283,0.0002,2]
[370314956,1751949053461,-201.66206344,0.0002,2]
[370314957,1751949053470,-460.0,0.0002,2]
[370314958,1751949053480,-460.0,0.0002,2]
[370314959,1751949053490,-180.2041026,0.0002,2]
[370314960,1751949053500,-452.34277597,0.0002,2]
[370314961,1751949053509,-460.0,0.0002,2]
[370314962,1751949053519,-463.77244255,0.0002,2]
[370314963,1751949053529,-460.0,0.0002,2]
[370314964,1751949053538,-460.0,0.0002,2]
[370314965,1751949053547,-460.0,0.0002,2]
[370314966,1751949053557,-460.0,0.0002,2]
[370314967,1751949053566,-466.84773659,0.0002,2]
[370314968,1751949053576,-463.35753316,0.0002,2]
[370314969,1751949053586,-508.09227533,0.0002,2]
[370314970,1751949053596,-466.46096759,0.0002,2]
[370314971,1751949053606,-460.0,0.0002,2]
[370314972,1751949053615,-460.0,0.0002,2]
[370314973,1751949053624,-410.80514934,0.0002,2]
[370314974,1751949053634,-460.0,0.0002,2]
[370314975,1751949053644,-460.0,0.0002,2]
[370314976,1751949053654,-460.0,0.0002,2]
[370314977,1751949053664,-460.0,0.0002,2]
[370314978,1751949053673,-464.8090447,0.0002,2]
[370314979,1751949053683,-460.0,0.0002,2]
[370314980,1751949053693,-460.0,0.0002,2]
[370314981,1751949053702,-634.73,0.0002,2]
[370314982,1751949053712,-460.0,0.0002,2]
[370314983,1751949053721,-460.0,0.0002,2]
[370314984,1751949053731,-460.0,0.0002,2]
[370314985,1751949053741,-272.81976637,0.0002,2]
[370314986,1751949053751,-460.0,0.0002,2]
[370314987,1751949053761,-2062.42,0.0002,2]
[370314988,1751949053771,-460.0,0.0002,2]
[370314989,1751949053781,-460.0,0.0002,2]
[370314990,1751949053791,-464.77402011,0.0002,2]
[370314991,1751949053801,-460.0,0.0002,2]
[370314992,1751949053811,-460.0,0.0002,2]
[370314993,1751949053821,-560.2520953,0.0002,2]
[370314994,1751949053831,-414.22320869,0.0002,2]
[370314995,1751949053841,-460.0,0.0002,2]
[370314996,1751949053851,-293.92866985,0.0002,2]
[370314998,1751949368669,1512.0,0.00025205,60]
[370315000,1751949557785,-5180.56896515,0.00018013,2]
[370315001,1751949557806,-2124.2043541,0.00018153,2]
[370315002,1751949557827,-166.0,0.00018177,2]
[370315003,1751949557848,-1696.17898345,0.000189,2]
[370315004,1751949557868,-300.0,0.00019077,2]
[370315005,1751949557890,-300.0,0.00019077,2]
[370315006,1751949557912,-151.0,0.00019078,2]
[370315007,1751949557932,-152.805839,0.00019078,2]
[370315008,1751949557953,-1200.0,0.00019171,2]
[370315009,1751949557973,-505.11416134,0.00019173,2]
[370315010,1751949557994,-465.62920523,0.00019173,2]
[370315011,1751949558014,-5840.09548972,0.00019173,2]
[370315012,1751949558035,-1200.0,0.00019175,2]
[370315013,1751949558056,-300.0,0.00019176,2]
[370315014,1751949558077,-300.0,0.00019176,2]
[370315015,1751949558099,-300.0,0.00019176,2]
[370315016,1751949558121,-328.80183545,0.00019177,2]
[370315017,1751949558143,-234.41219188,0.00019177,2]
[370315018,1751949558165,-617.79014107,0.00019177,2]
[370315019,1751949558186,-500.0,0.00019177,2]
[370315020,1751949558209,-466.09704423,0.00019177,2]
[370315021,1751949558231,-500.0,0.00019177,2]
[370315022,1751949558253,-352.57327533,0.00019177,2]
[370315023,1751949558276,-500.0,0.00019177,2]
[370315024,1751949558300,-500.0,0.00019177,2]
[370315025,1751949558323,-500.0,0.00019177,2]
[370315026,1751949558352,-500.0,0.00019177,2]
[370315027,1751949558375,-461.52068341,0.00019177,2]
[370315028,1751949558397,-500.0,0.00019177,2]
[370315029,1751949558423,-500.0,0.00019177,2]
[370315030,1751949558444,-500.0,0.00019177,2]
[370315031,1751949558467,-500.0,0.00019177,2]
[370315032,1751949558492,-216.87057222,0.00019177,2]
[370315033,1751949558514,-500.0,0.00019177,2]
[370315034,1751949558536,-608.57814753,0.00019177,2]
[370315035,1751949558558,-504.91861386,0.00019177,2]
[370315036,1751949558581,-500.0,0.00019177,2]
[370315037,1751949558603,-592.86882783,0.00019177,2]
[370315038,1751949558626,-500.0,0.00019177,2]
[370315039,1751949558655,-500.0,0.00019177,2]
[370315040,1751949558679,-500.0,0.00019177,2]
[370315041,1751949558702,-500.0,0.00019177,2]
[370315042,1751949558726,-500.0,0.00019177,2]
[370315043,1751949558748,-500.0,0.00019177,2]
[370315044,1751949558771,-500.0,0.00019177,2]
[370315045,1751949558795,-500.0,0.00019177,2]
[370315046,1751949558819,-500.0,0.00019177,2]
[370315047,1751949558842,-500.0,0.00019177,2]
[370315048,1751949558866,-398.9716692,0.00019177,2]
[370315050,1751949667444,283.8645594,0.00025226,120]
[370315070,1751950232113,-3808.41517067,0.00018013,2]
[370315077,1751950232166,-990.58482933,0.00018013,2]
[370315079,1751950232176,-325.983712,0.0001815,2]
[370315081,1751950232186,-446.8209639,0.0001873,2]
[370315083,1751950232195,-1130.78598896,0.000189,2]
[370315085,1751950232206,-1200.0,0.00019067,2]
[370315087,1751950232216,-1303.48129689,0.00019068,2]
[370315089,1751950232226,-300.0,0.00019074,2]
[370315091,1751950232235,-300.0,0.00019074,2]
[370315093,1751950232245,-300.0,0.00019074,2]
[370315095,1751950232255,-1200.0,0.00019075,2]
[370315097,1751950232265,-390.21062087,0.00019078,2]
[370315099,1751950232274,-207.4,0.00019155,2]
[370315101,1751950232284,-690.642,0.00019155,2]
[370315103,1751950232293,-500.0,0.00019166,2]
[370315105,1751950232303,-500.0,0.00019166,2]
[370315108,1751950232312,-208.0,0.00019166,2]
[370315110,1751950232322,-25000.0,0.00019166,2]
[370315112,1751950232331,-217.9467426,0.00019167,2]
[370315114,1751950232341,-400.9531275,0.00019167,2]
[370315116,1751950232351,-1101.39,0.00019168,3]
[370315118,1751950232361,-550.7,0.00019168,3]
[370315120,1751950232371,-275.35,0.00019168,3]
[370315122,1751950232381,-826.07,0.00019168,3]
[370315124,1751950232390,-515.41875692,0.00019177,2]
[370315126,1751950232400,-101.0283308,0.00019177,2]
[370315128,1751950232410,-499.3755369,0.00019177,2]
[370315130,1751950232420,-462.82368717,0.00019178,2]
[370315133,1751950232430,-460.0,0.00019178,2]
[370315134,1751950232440,-460.91225955,0.00019178,2]
[370315137,1751950232450,-460.0,0.00019178,2]
[370315139,1751950232459,-500.0,0.00019178,2]
[370315141,1751950232470,-496.96744564,0.00019178,2]
[370315143,1751950232483,-460.0,0.00019178,2]
[370315145,1751950232493,-460.0,0.00019178,2]
[370315147,1751950232502,-460.0,0.00019178,2]
[370315149,1751950232512,-460.0,0.00019178,2]
[370315151,1751950232523,-460.0,0.00019178,2]
[370315153,1751950232532,-460.69727057,0.00019178,2]
[370315155,1751950232542,-460.0,0.00019178,2]
[370315157,1751950232552,-460.0,0.00019178,2]
[370315159,1751950232562,-460.0,0.00019178,2]
[370315161,1751950232572,-460.87223369,0.00019178,2]
[370315163,1751950232582,-460.0,0.00019178,2]
[370315165,1751950232591,-460.0,0.00019178,2]
[370315167,1751950232601,-446.04899936,0.00019178,2]
[370315169,1751950232611,-460.0,0.00019178,2]
[370315172,1751950232620,-460.0,0.00019178,2]
[370315173,1751950232630,-460.0,0.00019178,2]
[370315175,1751950232640,-460.0,0.00019178,2]
[370315178,1751950232649,-460.0,0.00019178,2]
[370315180,1751950232659,-460.0,0.00019178,2]
[370315182,1751950232670,-1000.0,0.00019178,2]
[370315184,1751950232680,-460.0,0.00019178,2]
[370315186,1751950232690,-276.15013097,0.00019178,2]
[370315188,1751950232700,-460.35159422,0.00019178,2]
[370315198,1751950232858,-478.00382292,0.00019178,2]
[370315200,1751950232869,-460.0,0.00019178,2]
[370315201,1751950232880,-460.0,0.00019178,2]
[370315203,1751950232891,-460.0,0.00019178,2]
[370315204,1751950232900,-460.0,0.00019178,2]
[370315206,1751950232910,-460.0,0.00019178,2]
[370315207,1751950232920,-460.0,0.00019178,2]
[370315208,1751950232930,-460.0,0.00019178,2]
[370315209,1751950232940,-460.0,0.00019178,2]
[370315210,1751950232950,-460.0,0.00019178,2]
[370315212,1751950232960,-461.34976666,0.00019178,2]
[370315213,1751950232969,-518.87791076,0.00019178,7]
[370315214,1751950232979,-460.0,0.00019178,2]
[370315216,1751950232990,-460.0,0.00019178,2]
[370315218,1751950232999,-460.0,0.00019178,2]
[370315220,1751950233010,-460.0,0.00019178,2]
[370315222,1751950233020,-460.0,0.00019178,2]
[370315223,1751950233030,-460.0,0.00019178,2]
[370315224,1751950233040,-460.0,0.00019178,2]
[370315225,1751950233051,-460.0,0.00019178,2]
[370315226,1751950233061,-460.0,0.00019178,2]
[370315227,1751950233071,-460.0,0.00019178,2]
[370315228,1751950233081,-460.0,0.00019178,2]
[370315229,1751950233091,-502.85678311,0.00019178,2]
[370315230,1751950233101,-460.0,0.00019178,2]
[370315231,1751950233111,-460.0,0.00019178,2]
[370315232,1751950233121,-460.0,0.00019178,2]
[370315233,1751950233131,-460.0,0.00019178,2]
[370315234,1751950233141,-460.0,0.00019178,2]
[370315235,1751950233152,-460.0,0.00019178,2]
[370315236,1751950233162,-460.0,0.00019178,2]
[370315237,1751950233173,-460.0,0.00019178,2]
[370315238,1751950233183,-460.0,0.00019178,2]
[370315239,1751950233193,-460.0,0.00019178,2]
[370315240,1751950233203,-460.0,0.00019178,2]
[370315241,1751950233213,-460.0,0.00019178,2]
[370315242,1751950233223,-460.0,0.00019178,2]
[370315243,1751950233233,-460.0,0.00019178,2]
[370315244,1751950233242,-460.0,0.00019178,2]
[370315245,1751950233252,-460.0,0.00019178,2]
[370315246,1751950233261,-160.0,0.00019178,2]
[370315247,1751950233272,-460.44694107,0.00019178,2]
[370315248,1751950233281,-460.0,0.00019178,2]
[370315249,1751950233291,-460.0,0.00019178,2]
[370315250,1751950233301,-460.0,0.00019178,2]
[370315251,1751950233311,-461.19291933,0.00019178,2]
[370315252,1751950233321,-460.0,0.00019178,2]
[370315253,1751950233331,-199.76027221,0.00019178,2]
[370315254,1751950233341,-460.0,0.00019178,2]
[370315255,1751950233351,-460.0,0.00019178,2]
[370315256,1751950233361,-460.0,0.00019178,2]
[370315257,1751950233371,-578.8819192,0.00019178,2]
[370315258,1751950233381,-460.0,0.00019178,2]
[370315259,1751950233391,-460.0,0.00019178,2]
[370315260,1751950233400,-460.0,0.00019178,2]
[370315261,1751950233410,-462.36998804,0.00019178,2]
[370315262,1751950233419,-460.0,0.00019178,2]
[370315263,1751950233429,-460.0,0.00019178,2]
[370315264,1751950233439,-460.0,0.00019178,2]
[370315265,1751950233448,-460.0,0.00019178,2]
[370315266,1751950233458,-460.86978411,0.00019178,2]
[370315267,1751950233468,-430.0,0.00019178,2]
[370315268,1751950233481,-460.0,0.00019178,2]
[370315269,1751950233491,-460.0,0.00019178,2]
[370315270,1751950233500,-460.0,0.00019178,2]
[370315271,1751950233510,-461.17443334,0.00019178,2]
[370315272,1751950233521,-461.05539042,0.00019178,2]
[370315273,1751950233531,-460.0,0.00019178,2]
[370315274,1751950233541,-460.91171054,0.00019178,2]
[370315275,1751950233555,-460.0,0.00019178,2]
[370315276,1751950233566,-460.0,0.00019178,2]
[370315277,1751950233576,-460.85025838,0.00019178,2]
[370315278,1751950233586,-461.11871174,0.00019178,2]
[370315279,1751950233595,-460.0,0.00019178,2]
[370315280,1751950233605,-460.0,0.00019178,2]
[370315281,1751950233614,-460.0,0.00019178,2]
[370315282,1751950233624,-460.0,0.00019178,2]
[370315283,1751950233634,-460.0,0.00019178,2]
[370315284,1751950233644,-291.5316842,0.00019178,2]
[370315285,1751950233654,-461.91067492,0.00019178,2]
[370315286,1751950233663,-460.0,0.00019178,2]
[370315287,1751950233674,-460.83718335,0.00019178,2]
[370315288,1751950233684,-460.0,0.00019178,2]
[370315289,1751950233694,-460.0,0.00019178,2]
[370315290,1751950233703,-460.0,0.00019178,2]
[370315291,1751950233713,-460.0,0.00019178,2]
[370315292,1751950233722,-460.0,0.00019178,2]
[370315293,1751950233733,-463.1266738,0.00019178,2]
[370315294,1751950233742,-460.39232857,0.00019178,2]
[370315295,1751950233752,-460.0,0.00019178,2]
[370315296,1751950233763,-460.0,0.00019178,2]
[370315297,1751950233773,-465.56410779,0.00019178,2]
[370315298,1751950233783,-460.0,0.00019178,2]
[370315299,1751950233793,-460.0,0.00019178,2]
[370315300,1751950233803,-460.0,0.00019178,2]
[370315301,1751950233812,-460.0,0.00019178,2]
[370315302,1751950233822,-461.50599162,0.00019178,2]
[370315303,1751950233832,-575.34348576,0.00019178,2]
[370315304,1751950233842,-460.0,0.00019178,2]
[370315305,1751950233852,-462.5413951,0.00019178,2]
[370315306,1751950233862,-460.0,0.00019178,2]
[370315307,1751950233871,-460.0,0.00019178,2]
[370315308,1751950233881,-537.18277685,0.00019178,2]
[370315309,1751950233891,-460.0,0.00019178,2]
[370315310,1751950233901,-460.0,0.00019178,2]
[370315311,1751950233911,-460.0,0.00019178,2]
[370315312,1751950233921,-460.0,0.00019178,2]
[370315313,1751950233931,-460.0,0.00019178,2]
[370315314,1751950233940,-460.0,0.00019178,2]
[370315315,1751950233950,-460.0,0.00019178,2]
[370315316,1751950233959,-405.70206124,0.00019178,2]
[370315317,1751950233969,-463.51647575,0.00019178,2]
[370315318,1751950233979,-461.8452125,0.00019178,2]
[370315319,1751950233994,-460.0,0.00019178,2]
[370315320,1751950234009,-472.22556473,0.00019178,2]
[370315321,1751950234025,-460.0,0.00019178,2]
[370315322,1751950234041,-447.01326728,0.00019178,2]
[370315323,1751950234052,-460.0,0.00019178,2]
[370315324,1751950234066,-562.41939944,0.00019178,2]
[370315325,1751950234079,-460.0,0.00019178,2]
[370315326,1751950234094,-462.19853088,0.00019178,2]
[370315327,1751950234109,-598.17905003,0.00019178,2]
[370315328,1751950234123,-182.66927441,0.00019178,2]
[370315329,1751950234136,-460.0,0.00019178,2]
[370315330,1751950234151,-460.0,0.00019178,2]
[370315331,1751950234167,-460.0,0.00019178,2]
[370315332,1751950234181,-625.27317686,0.00019178,2]
[370315333,1751950234195,-460.0,0.00019178,2]
[370315334,1751950234209,-460.0,0.00019178,2]
[370315335,1751950234223,-463.28805727,0.00019178,2]
[370315336,1751950234235,-460.0,0.00019178,2]
[370315337,1751950234250,-460.0,0.00019178,2]
[370315338,1751950234265,-460.0,0.00019178,2]
[370315339,1751950234279,-460.0,0.00019178,2]
[370315340,1751950234292,-464.71261845,0.00019178,2]
[370315341,1751950234304,-523.85,0.00019178,2]
[370315342,1751950234317,-460.0,0.00019178,2]
[370315343,1751950234328,-468.75670586,0.00019178,2]
[370315344,1751950234342,-460.0,0.00019178,2]
[370315345,1751950234356,-460.0,0.00019178,2]
[370315346,1751950234370,-461.65622986,0.00019178,2]
[370315347,1751950234383,-460.0,0.00019178,2]
[370315348,1751950234397,-460.0,0.00019178,2]
[370315349,1751950234412,-460.0,0.00019178,2]
[370315350,1751950234427,-528.95,0.00019178,2]
[370315351,1751950234441,-460.0,0.00019178,2]
[370315352,1751950234452,-514.9906535,0.00019178,2]
[370315353,1751950234463,-460.0,0.00019178,2]
[370315354,1751950234478,-460.0,0.00019178,2]
[370315355,1751950234490,-460.0,0.00019178,2]
[370315356,1751950234505,-237.52655414,0.00019178,2]
[370315357,1751950234521,-460.0,0.00019178,2]
[370315358,1751950234536,-460.0,0.00019178,2]
[370315359,1751950234547,-460.0,0.00019178,2]
[370315360,1751950234559,-460.0,0.00019178,2]
[370315361,1751950234571,-460.0,0.00019178,2]
[370315362,1751950234584,-460.0,0.00019178,2]
[370315363,1751950234597,-468.40345094,0.00019178,2]
[370315364,1751950234609,-460.0,0.00019178,2]
[370315365,1751950234620,-460.0,0.00019178,2]
[370315366,1751950234632,-461.53770374,0.00019178,2]
[370315367,1751950234644,-465.1892588,0.00019178,2]
[370315368,1751950234655,-460.0,0.00019178,2]
[370315369,1751950234667,-460.0,0.00019178,2]
[370315370,1751950234679,-460.0,0.00019178,2]
[370315371,1751950234691,-460.0,0.00019178,2]
[370315372,1751950234704,-460.0,0.00019178,2]
[370315373,1751950234717,-460.0,0.00019178,2]
[370315374,1751950234731,-460.0,0.00019178,2]
[370315375,1751950234743,-460.0,0.00019178,2]
[370315376,1751950234755,-460.0,0.00019178,2]
[370315377,1751950234768,-446.65832134,0.00019178,2]
[370315378,1751950234780,-460.0,0.00019178,2]
[370315379,1751950234792,-460.0,0.00019178,2]
[370315380,1751950234804,-460.9834125,0.00019178,2]
[370315381,1751950234816,-460.0,0.00019178,2]
[370315382,1751950234829,-461.38792092,0.00019178,2]
[370315383,1751950234841,-460.0,0.00019178,2]
[370315384,1751950234854,-460.0,0.00019178,2]
[370315385,1751950234867,-460.0,0.00019178,2]
[370315386,1751950234880,-460.0,0.00019178,2]
[370315387,1751950234892,-460.0,0.00019178,2]
[370315388,1751950234905,-460.0,0.00019178,2]
[370315389,1751950234917,-460.0,0.00019178,2]
[370315390,1751950234929,-500.0,0.00019178,2]
[370315391,1751950234942,-471.84,0.00019178,2]
[370315392,1751950234955,-460.0,0.00019178,2]
[370315393,1751950234967,-460.0,0.00019178,2]
[370315394,1751950234979,-460.0,0.00019178,2]
[370315395,1751950234992,-469.72397983,0.00019178,2]
[370315396,1751950235004,-495.2671998,0.00019178,2]
[370315397,1751950235016,-460.0,0.00019178,2]
[370315398,1751950235028,-593.25,0.00019178,2]
[370315399,1751950235040,-460.0,0.00019178,2]
[370315400,1751950235053,-460.0,0.00019178,2]
[370315401,1751950235065,-460.0,0.00019178,2]
[370315402,1751950235076,-460.0,0.00019178,2]
[370315403,1751950235088,-460.0,0.00019178,2]
[370315404,1751950235100,-460.0,0.00019178,2]
[370315405,1751950235112,-460.0,0.00019178,2]
[370315406,1751950235124,-168.76196737,0.00019178,2]
[370315407,1751950235136,-468.62607289,0.00019178,2]
[370315408,1751950235148,-453.26237249,0.00019178,2]
[370315409,1751950235161,-460.0,0.00019178,2]
[370315410,1751950235173,-460.0,0.00019178,2]
[370315411,1751950235185,-460.0,0.00019178,2]
[370315412,1751950235197,-460.0,0.00019178,2]
[370315413,1751950235208,-460.0,0.00019178,2]
[370315414,1751950235221,-460.0,0.00019178,2]
[370315415,1751950235237,-460.0,0.00019178,2]
[370315416,1751950235254,-460.0,0.00019178,2]
[370315417,1751950235267,-462.70844024,0.00019178,2]
[370315418,1751950235280,-465.05563588,0.00019178,2]
[370315419,1751950235292,-460.0,0.00019178,2]
[370315420,1751950235305,-460.0,0.00019178,2]
[370315421,1751950235317,-460.0,0.00019178,2]
[370315422,1751950235328,-463.62135264,0.00019178,2]
[370315423,1751950235340,-460.0,0.00019178,2]
[370315424,1751950235353,-460.0,0.00019178,2]
[370315425,1751950235367,-460.0,0.00019178,2]
[370315426,1751950235380,-460.0,0.00019178,2]
[370315427,1751950235393,-460.0,0.00019178,2]
[370315428,1751950235403,-460.0,0.00019178,2]
[370315429,1751950235414,-460.0,0.00019178,2]
[370315430,1751950235424,-460.0,0.00019178,2]
[370315431,1751950235436,-460.0,0.00019178,2]
[370315432,1751950235607,-460.0,0.00019178,2]
[370315433,1751950235652,-460.0,0.00019178,2]
[370315434,1751950235665,-460.0,0.00019178,2]
[370315435,1751950235676,-460.0,0.00019178,2]
[370315436,1751950235686,-460.0,0.00019178,2]
[370315437,1751950235697,-460.0,0.00019178,2]
[370315438,1751950235710,-489.87475435,0.00019178,2]
[370315439,1751950235720,-393.52232567,0.00019178,2]
[370315440,1751950235730,-460.0,0.00019178,2]
[370315441,1751950235741,-460.0,0.00019178,2]
[370315442,1751950235750,-460.0,0.00019178,2]
[370315443,1751950235759,-460.0,0.00019178,2]
[370315444,1751950235769,-460.0,0.00019178,2]
[370315445,1751950235778,-460.0,0.00019178,2]
[370315446,1751950235788,-1738.35,0.00019178,2]
[370315447,1751950235798,-460.0,0.00019178,2]
[370315448,1751950235807,-460.0,0.00019178,2]
[370315449,1751950235817,-238.5224669,0.00019178,2]
[370315450,1751950235826,-460.0,0.00019178,2]
[370315451,1751950235836,-460.0,0.00019178,2]
[370315452,1751950235847,-460.0,0.00019178,2]
[370315453,1751950235858,-460.0,0.00019178,2]
[370315454,1751950235867,-120.63498688,0.00019178,2]
[370315455,1751950235895,-339.36501312,0.00019178,2]
[370315456,1751950235904,-443.41029753,0.00019178,2]
[370315471,1751950238195,-16.58970247,0.00019178,2]
[370315472,1751950238206,-460.0,0.00019178,2]
[370315473,1751950238216,-460.0,0.00019178,2]